[Event "*** Titled Tuesday Blitz"]
[Site "Chess.com"]
[Date "2020.12.29"]
[Round "3"]
[White "nubair1198"]
[Black "imdvb6307"]
[Result "0-1"]
[WhiteElo "2725"]
[BlackElo "2368"]
[TimeControl "180+1"]
[EndTime "10:30:00 PST"]
[Termination "imdvb6307 won on time"]

1. d4 {[%clk 0:03:00.9]} 1... d5 {[%clk 0:02:58.9]} 2. c4 {[%clk 0:03:00]} 2...
c6 {[%clk 0:02:59.1]} 3. Nf3 {[%clk 0:02:59.6]} 3... Nf6 {[%clk 0:02:59.6]} 4.
Nc3 {[%clk 0:02:59.9]} 4... e6 {[%clk 0:02:59.9]} 5. Bg5 {[%clk 0:02:54.2]} 5...
Nbd7 {[%clk 0:02:59.8]} 6. cxd5 {[%clk 0:02:53.2]} 6... exd5 {[%clk 0:02:57.4]}
7. e3 {[%clk 0:02:52.8]} 7... Qa5 {[%clk 0:02:57.2]} 8. Nd2 {[%clk 0:02:44]}
8... Bb4 {[%clk 0:02:49.5]} 9. Qc2 {[%clk 0:02:41.5]} 9... Ne4 {[%clk
0:02:49.8]} 10. Ndxe4 {[%clk 0:02:00.7]} 10... dxe4 {[%clk 0:02:49]} 11. Bh4
{[%clk 0:02:00.4]} 11... O-O {[%clk 0:02:46.8]} 12. Bc4 {[%clk 0:01:58.3]} 12...
Nb6 {[%clk 0:02:45.3]} 13. Be2 {[%clk 0:01:56.8]} 13... Nd5 {[%clk 0:02:43]} 14.
O-O {[%clk 0:01:56.6]} 14... Nxc3 {[%clk 0:02:22.4]} 15. bxc3 {[%clk 0:01:57.5]}
15... Bxc3 {[%clk 0:02:22.6]} 16. Rac1 {[%clk 0:01:56.6]} 16... Bd2 {[%clk
0:02:20.2]} 17. Rcd1 {[%clk 0:01:56.8]} 17... Bb4 {[%clk 0:02:19]} 18. f3 {[%clk
0:01:11.4]} 18... exf3 {[%clk 0:01:47.5]} 19. Rxf3 {[%clk 0:01:03.5]} 19... Be6
{[%clk 0:01:44.6]} 20. a3 {[%clk 0:00:51.6]} 20... Qxa3 {[%clk 0:01:23.3]} 21.
d5 {[%clk 0:00:26]} 21... cxd5 {[%clk 0:01:18.1]} 22. e4 {[%clk 0:00:26.1]}
22... Qa5 {[%clk 0:01:14.9]} 23. exd5 {[%clk 0:00:26.3]} 23... Qc5+ {[%clk
0:01:14.7]} 24. Qxc5 {[%clk 0:00:19]} 24... Bxc5+ {[%clk 0:01:14.8]} 25. Bf2
{[%clk 0:00:19.9]} 25... Bxf2+ {[%clk 0:01:13]} 26. Rxf2 {[%clk 0:00:20.8]}
26... Bd7 {[%clk 0:01:11.7]} 27. Bf3 {[%clk 0:00:19.7]} 27... a5 {[%clk
0:01:04.4]} 28. Rb2 {[%clk 0:00:19.7]} 28... b5 {[%clk 0:01:01.2]} 29. d6 {[%clk
0:00:17.8]} 29... Rac8 {[%clk 0:00:57.9]} 30. Re1 {[%clk 0:00:15.7]} 30... Rfe8
{[%clk 0:00:55.3]} 31. Kf2 {[%clk 0:00:11.5]} 31... Rxe1 {[%clk 0:00:54.2]} 32.
Kxe1 {[%clk 0:00:12.4]} 32... b4 {[%clk 0:00:52.6]} 33. Ra2 {[%clk 0:00:11.9]}
33... a4 {[%clk 0:00:52.1]} 34. Kd2 {[%clk 0:00:10.7]} 34... a3 {[%clk
0:00:51.8]} 35. Bd5 {[%clk 0:00:10]} 35... Be6 {[%clk 0:00:51.8]} 36. Bxe6
{[%clk 0:00:09.5]} 36... fxe6 {[%clk 0:00:49.3]} 37. Kd3 {[%clk 0:00:09.6]}
37... Kf7 {[%clk 0:00:47.6]} 38. d7 {[%clk 0:00:09]} 38... Rd8 {[%clk
0:00:45.4]} 39. Kc4 {[%clk 0:00:08.9]} 39... Rxd7 {[%clk 0:00:45.6]} 40. Kxb4
{[%clk 0:00:09]} 40... Ra7 {[%clk 0:00:43.3]} 41. Kb3 {[%clk 0:00:08.2]} 41...
Ke7 {[%clk 0:00:41]} 42. h3 {[%clk 0:00:08]} 42... e5 {[%clk 0:00:41.1]} 43. Kc2
{[%clk 0:00:05.5]} 43... Ke6 {[%clk 0:00:40.2]} 44. Kb1 {[%clk 0:00:06.1]} 44...
e4 {[%clk 0:00:39.9]} 45. Rc2 {[%clk 0:00:05.8]} 45... Rb7+ {[%clk 0:00:37.8]}
46. Ka1 {[%clk 0:00:05.5]} 46... Rb2 {[%clk 0:00:37.6]} 47. Rc4 {[%clk
0:00:05.6]} 47... Kd5 {[%clk 0:00:36.9]} 48. Ra4 {[%clk 0:00:05.4]} 48... Rxg2
{[%clk 0:00:36.5]} 49. Rxa3 {[%clk 0:00:05.9]} 49... Ke5 {[%clk 0:00:36.1]} 50.
Kb1 {[%clk 0:00:06.2]} 50... Kf4 {[%clk 0:00:36.1]} 51. Kc1 {[%clk 0:00:05.9]}
51... Rg3 {[%clk 0:00:36.3]} 52. Ra7 {[%clk 0:00:05.2]} 52... h5 {[%clk
0:00:35.8]} 53. Kd2 {[%clk 0:00:05.1]} 53... g6 {[%clk 0:00:34]} 54. Rf7+ {[%clk
0:00:04.3]} 54... Kg5 {[%clk 0:00:33.7]} 55. Re7 {[%clk 0:00:03.8]} 55... e3+
{[%clk 0:00:33.8]} 56. Ke2 {[%clk 0:00:04.1]} 56... Rxh3 {[%clk 0:00:33.8]} 57.
Re6 {[%clk 0:00:04.5]} 57... Rg3 {[%clk 0:00:33.1]} 58. Ra6 {[%clk 0:00:05.4]}
58... Kh4 {[%clk 0:00:33]} 59. Ra4+ {[%clk 0:00:05.5]} 59... Kh3 {[%clk
0:00:33.1]} 60. Kf1 {[%clk 0:00:05.1]} 60... Rf3+ {[%clk 0:00:27.3]} 61. Ke2
{[%clk 0:00:05]} 61... Rg3 {[%clk 0:00:20.5]} 62. Kf1 {[%clk 0:00:04.1]} 62...
g5 {[%clk 0:00:20.8]} 63. Ra5 {[%clk 0:00:03.6]} 63... h4 {[%clk 0:00:20.6]} 64.
Ke2 {[%clk 0:00:03.5]} 64... g4 {[%clk 0:00:20.7]} 65. Ra1 {[%clk 0:00:03.7]}
65... Rg2+ {[%clk 0:00:20.1]} 66. Kxe3 {[%clk 0:00:04.6]} 66... Kh2 {[%clk
0:00:20.2]} 67. Kf4 {[%clk 0:00:04.5]} 67... g3 {[%clk 0:00:20.2]} 68. Ra8
{[%clk 0:00:03.9]} 68... h3 {[%clk 0:00:20.2]} 69. Ra1 {[%clk 0:00:03.5]} 69...
Rf2+ {[%clk 0:00:20.2]} 70. Ke3 {[%clk 0:00:03.6]} 70... Rf7 {[%clk 0:00:19.1]}
71. Ra2+ {[%clk 0:00:02.6]} 71... g2 {[%clk 0:00:19.3]} 72. Ke4 {[%clk
0:00:02.1]} 72... Kh1 {[%clk 0:00:19.4]} 0-1

[Event "*** Titled Tuesday Blitz"]
[Site "Chess.com"]
[Date "2020.12.29"]
[Round "3"]
[White "zajka-molotok"]
[Black "davigator"]
[Result "1-0"]
[WhiteElo "2502"]
[BlackElo "2272"]
[TimeControl "180+1"]
[EndTime "10:30:00 PST"]
[Termination "zajka-molotok won by checkmate"]

1. e4 {[%clk 0:03:00.9]} 1... c5 {[%clk 0:02:58.8]} 2. Nf3 {[%clk 0:03:00.6]}
2... Nc6 {[%clk 0:02:58.7]} 3. Bb5 {[%clk 0:02:55.1]} 3... g6 {[%clk 0:02:57.4]}
4. O-O {[%clk 0:02:52.7]} 4... Bg7 {[%clk 0:02:53.9]} 5. Re1 {[%clk 0:02:52.7]}
5... Nf6 {[%clk 0:02:53.3]} 6. Bxc6 {[%clk 0:02:42.2]} 6... dxc6 {[%clk
0:02:53.1]} 7. d3 {[%clk 0:02:37.4]} 7... O-O {[%clk 0:02:52.5]} 8. Bd2 {[%clk
0:02:31.5]} 8... Bg4 {[%clk 0:02:49.3]} 9. Bc3 {[%clk 0:02:30.5]} 9... Nd7
{[%clk 0:02:40.5]} 10. a4 {[%clk 0:02:17.5]} 10... a5 {[%clk 0:02:37.5]} 11.
Bxg7 {[%clk 0:02:11]} 11... Kxg7 {[%clk 0:02:37.1]} 12. Nbd2 {[%clk 0:02:11.8]}
12... e5 {[%clk 0:02:30.9]} 13. Nc4 {[%clk 0:02:08.2]} 13... f6 {[%clk
0:02:27.4]} 14. h3 {[%clk 0:02:07.6]} 14... Be6 {[%clk 0:02:26.7]} 15. b3 {[%clk
0:01:53.5]} 15... Qc7 {[%clk 0:02:24.9]} 16. Nfd2 {[%clk 0:01:50.2]} 16... Rfd8
{[%clk 0:02:22.3]} 17. Qe2 {[%clk 0:01:44.8]} 17... Nf8 {[%clk 0:02:21.4]} 18.
Qe3 {[%clk 0:01:43.6]} 18... b6 {[%clk 0:02:13.8]} 19. Rf1 {[%clk 0:01:43.1]}
19... g5 {[%clk 0:02:11.1]} 20. Qg3 {[%clk 0:01:34.4]} 20... Ng6 {[%clk
0:02:08]} 21. Rae1 {[%clk 0:01:19.7]} 21... Ra7 {[%clk 0:02:07.3]} 22. Ne3
{[%clk 0:01:18.9]} 22... Kh8 {[%clk 0:02:05.8]} 23. Nf5 {[%clk 0:01:15]} 23...
Nf8 {[%clk 0:02:03.9]} 24. Qf3 {[%clk 0:01:09.2]} 24... Qf7 {[%clk 0:01:48.3]}
25. Nc4 {[%clk 0:01:03]} 25... Qc7 {[%clk 0:01:44.7]} 26. h4 {[%clk 0:00:58.9]}
26... Bxc4 {[%clk 0:01:40.8]} 27. bxc4 {[%clk 0:00:56.7]} 27... Ne6 {[%clk
0:01:40.9]} 28. hxg5 {[%clk 0:00:54.1]} 28... fxg5 {[%clk 0:01:41]} 29. g3
{[%clk 0:00:49.1]} 29... Rf8 {[%clk 0:01:39.1]} 30. Qh5 {[%clk 0:00:44.1]} 30...
Qd8 {[%clk 0:01:38.2]} 31. Kg2 {[%clk 0:00:42.7]} 31... Raf7 {[%clk 0:01:36.8]}
32. Rh1 {[%clk 0:00:40.8]} 32... Nd4 {[%clk 0:01:29.1]} 33. Nxd4 {[%clk
0:00:19.2]} 33... Qxd4 {[%clk 0:01:18.6]} 34. f3 {[%clk 0:00:18.9]} 34... Qd8
{[%clk 0:01:13]} 35. Ref1 {[%clk 0:00:17.5]} 35... Qe7 {[%clk 0:01:12]} 36. Rf2
{[%clk 0:00:17.4]} 36... Rg7 {[%clk 0:01:05.6]} 37. Qh6 {[%clk 0:00:15.1]} 37...
Rf6 {[%clk 0:01:04.6]} 38. Qh5 {[%clk 0:00:14.8]} 38... Qd7 {[%clk 0:01:01.8]}
39. Rh2 {[%clk 0:00:11.3]} 39... b5 {[%clk 0:00:59.3]} 40. cxb5 {[%clk
0:00:10.4]} 40... cxb5 {[%clk 0:00:59.6]} 41. axb5 {[%clk 0:00:10.9]} 41... Qxb5
{[%clk 0:01:00.2]} 42. Qg4 {[%clk 0:00:11]} 42... Qc6 {[%clk 0:00:56.4]} 43. Rh5
{[%clk 0:00:10.3]} 43... h6 {[%clk 0:00:54.5]} 44. Rf1 {[%clk 0:00:10.1]} 44...
a4 {[%clk 0:00:53.7]} 45. Rfh1 {[%clk 0:00:10.1]} 45... Rgg6 {[%clk 0:00:46.5]}
46. Rxg5 {[%clk 0:00:09.5]} 46... a3 {[%clk 0:00:43.6]} 47. Rxh6+ {[%clk
0:00:05.5]} 47... Kg7 {[%clk 0:00:43.9]} 48. Rhxg6+ {[%clk 0:00:05.2]} 48...
Rxg6 {[%clk 0:00:44]} 49. Rxg6+ {[%clk 0:00:04]} 49... Qxg6 {[%clk 0:00:44.1]}
50. Qd7+ {[%clk 0:00:04.4]} 50... Qf7 {[%clk 0:00:43.4]} 51. Qa4 {[%clk
0:00:03.2]} 51... a2 {[%clk 0:00:40.9]} 52. c4 {[%clk 0:00:03.4]} 52... Qb7
{[%clk 0:00:30.4]} 53. Qxa2 {[%clk 0:00:03.6]} 53... Qb4 {[%clk 0:00:30.7]} 54.
Qc2 {[%clk 0:00:03.4]} 54... Qe1 {[%clk 0:00:30.2]} 55. Qf2 {[%clk 0:00:03]}
55... Qd1 {[%clk 0:00:29.5]} 56. Qf1 {[%clk 0:00:02.4]} 56... Qd2+ {[%clk
0:00:29.9]} 57. Kh3 {[%clk 0:00:02.6]} 57... Qh6+ {[%clk 0:00:28.6]} 58. Kg2
{[%clk 0:00:02.4]} 58... Qd2+ {[%clk 0:00:28.7]} 59. Qf2 {[%clk 0:00:02.5]}
59... Qxd3 {[%clk 0:00:28.7]} 60. Qxc5 {[%clk 0:00:02.9]} 60... Qe2+ {[%clk
0:00:28.9]} 61. Qf2 {[%clk 0:00:02.7]} 61... Qxc4 {[%clk 0:00:28.8]} 62. Qd2
{[%clk 0:00:02.9]} 62... Qc5 {[%clk 0:00:22.4]} 63. Qd7+ {[%clk 0:00:02.9]}
63... Kh6 {[%clk 0:00:21.7]} 64. Qh3+ {[%clk 0:00:02.7]} 64... Kg7 {[%clk
0:00:20.8]} 65. Qg4+ {[%clk 0:00:03.4]} 65... Kh6 {[%clk 0:00:21.1]} 66. Qf5
{[%clk 0:00:04]} 66... Qd4 {[%clk 0:00:18.2]} 67. Kh3 {[%clk 0:00:04.4]} 67...
Qa1 {[%clk 0:00:16.3]} 68. Kg4 {[%clk 0:00:04.3]} 68... Qd4 {[%clk 0:00:15.5]}
69. Qf6+ {[%clk 0:00:04.5]} 69... Kh7 {[%clk 0:00:15.6]} 70. Qf7+ {[%clk
0:00:04.3]} 70... Kh6 {[%clk 0:00:14.7]} 71. Kf5 {[%clk 0:00:04.4]} 71... Qf2
{[%clk 0:00:12.9]} 72. Qg6# {[%clk 0:00:04.3]} 1-0

[Event "*** Titled Tuesday Blitz"]
[Site "Chess.com"]
[Date "2020.12.29"]
[Round "3"]
[White "OrtizAnahi2001"]
[Black "Rytenko_V"]
[Result "1-0"]
[WhiteElo "2306"]
[BlackElo "2433"]
[TimeControl "180+1"]
[EndTime "10:30:01 PST"]
[Termination "OrtizAnahi2001 won by checkmate"]

1. d4 {[%clk 0:03:00.9]} 1... d5 {[%clk 0:01:42.4]} 2. c4 {[%clk 0:02:17.4]}
2... c6 {[%clk 0:01:42.4]} 3. Nc3 {[%clk 0:02:17.1]} 3... Nf6 {[%clk 0:01:42.4]}
4. cxd5 {[%clk 0:02:17]} 4... cxd5 {[%clk 0:01:42.3]} 5. Nf3 {[%clk 0:02:17.2]}
5... Nc6 {[%clk 0:01:42.9]} 6. Bf4 {[%clk 0:02:17.1]} 6... Bf5 {[%clk
0:01:43.2]} 7. e3 {[%clk 0:02:16.7]} 7... Qb6 {[%clk 0:01:40.7]} 8. Qd2 {[%clk
0:02:03.7]} 8... e6 {[%clk 0:01:38]} 9. Bd3 {[%clk 0:01:55.7]} 9... Bxd3 {[%clk
0:01:35.7]} 10. Qxd3 {[%clk 0:01:55.9]} 10... Be7 {[%clk 0:01:27.8]} 11. O-O
{[%clk 0:01:55.7]} 11... O-O {[%clk 0:01:27.5]} 12. Rab1 {[%clk 0:01:55.1]}
12... a6 {[%clk 0:01:22.2]} 13. Rfc1 {[%clk 0:01:54.3]} 13... Nb4 {[%clk
0:01:17.4]} 14. Qe2 {[%clk 0:01:51.7]} 14... Rac8 {[%clk 0:01:16.4]} 15. Ne5
{[%clk 0:01:48.9]} 15... Nc6 {[%clk 0:01:06]} 16. Nd3 {[%clk 0:01:47.5]} 16...
Nb4 {[%clk 0:01:01]} 17. Ne5 {[%clk 0:01:45]} 17... Nc6 {[%clk 0:00:59.1]} 18.
Nd3 {[%clk 0:01:31.5]} 18... Qa5 {[%clk 0:00:58]} 19. a3 {[%clk 0:01:19.1]}
19... b5 {[%clk 0:00:58.4]} 20. g4 {[%clk 0:00:54.3]} 20... b4 {[%clk
0:00:43.6]} 21. axb4 {[%clk 0:00:53.9]} 21... Nxb4 {[%clk 0:00:44.5]} 22. Ne5
{[%clk 0:00:54.2]} 22... Nc6 {[%clk 0:00:37.8]} 23. Ra1 {[%clk 0:00:53.6]} 23...
Qb4 {[%clk 0:00:34.4]} 24. Nd3 {[%clk 0:00:52.9]} 24... Qb7 {[%clk 0:00:27.2]}
25. Na4 {[%clk 0:00:51.5]} 25... Nb4 {[%clk 0:00:20.4]} 26. Ndc5 {[%clk
0:00:50.9]} 26... Qb5 {[%clk 0:00:18.2]} 27. Qxb5 {[%clk 0:00:43.5]} 27... axb5
{[%clk 0:00:19.1]} 28. Nb6 {[%clk 0:00:42.7]} 28... Rc6 {[%clk 0:00:15.3]} 29.
Nbd7 {[%clk 0:00:35.7]} 29... Rfc8 {[%clk 0:00:09.3]} 30. Nxf6+ {[%clk
0:00:35.3]} 30... gxf6 {[%clk 0:00:07.8]} 31. Nb3 {[%clk 0:00:23.8]} 31... Rxc1+
{[%clk 0:00:07.4]} 32. Rxc1 {[%clk 0:00:23.4]} 32... Rxc1+ {[%clk 0:00:04.2]}
33. Nxc1 {[%clk 0:00:23.1]} 33... Kf8 {[%clk 0:00:04]} 34. Kf1 {[%clk
0:00:22.5]} 34... Ke8 {[%clk 0:00:04.4]} 35. Ke2 {[%clk 0:00:22.8]} 35... Kd7
{[%clk 0:00:05.1]} 36. f3 {[%clk 0:00:22.6]} 36... Kc6 {[%clk 0:00:05.3]} 37. e4
{[%clk 0:00:22.6]} 37... Na6 {[%clk 0:00:04.1]} 38. Kd2 {[%clk 0:00:20]} 38...
b4 {[%clk 0:00:04.5]} 39. Kc2 {[%clk 0:00:19.8]} 39... Kb5 {[%clk 0:00:05]} 40.
b3 {[%clk 0:00:19.3]} 40... Kb6 {[%clk 0:00:03.2]} 41. Nd3 {[%clk 0:00:19.1]}
41... Kb5 {[%clk 0:00:03.6]} 42. h3 {[%clk 0:00:18.6]} 42... Bd8 {[%clk
0:00:03.5]} 43. Be3 {[%clk 0:00:18.2]} 43... Bc7 {[%clk 0:00:02.8]} 44. exd5
{[%clk 0:00:11.3]} 44... exd5 {[%clk 0:00:02.7]} 45. Nf4 {[%clk 0:00:11.1]}
45... Kc6 {[%clk 0:00:02.6]} 46. Nh5 {[%clk 0:00:10.6]} 46... Bd8 {[%clk
0:00:02.5]} 47. Bh6 {[%clk 0:00:10.9]} 47... Kd6 {[%clk 0:00:01.6]} 48. Bg7
{[%clk 0:00:11.3]} 48... Ke6 {[%clk 0:00:02.2]} 49. Nf4+ {[%clk 0:00:11.7]}
49... Kd6 {[%clk 0:00:02.7]} 50. Nh5 {[%clk 0:00:10.8]} 50... Ke6 {[%clk
0:00:03.1]} 51. h4 {[%clk 0:00:10.5]} 51... Nb8 {[%clk 0:00:02.5]} 52. Nf4+
{[%clk 0:00:10.3]} 52... Kd6 {[%clk 0:00:02.8]} 53. Bf8+ {[%clk 0:00:10.6]}
53... Kc6 {[%clk 0:00:01.6]} 54. Nd3 {[%clk 0:00:10]} 54... Nd7 {[%clk 0:00:02]}
55. Nxb4+ {[%clk 0:00:10.2]} 55... Kb5 {[%clk 0:00:02.7]} 56. Bd6 {[%clk
0:00:10]} 56... Nb6 {[%clk 0:00:02]} 57. Nd3 {[%clk 0:00:10]} 57... Kc6 {[%clk
0:00:02.3]} 58. Bc5 {[%clk 0:00:10.3]} 58... Kd7 {[%clk 0:00:02.7]} 59. b4
{[%clk 0:00:10.8]} 59... Nc8 {[%clk 0:00:02.5]} 60. Nf4 {[%clk 0:00:11]} 60...
Bc7 {[%clk 0:00:03.4]} 61. Nxd5 {[%clk 0:00:10.8]} 61... Kc6 {[%clk 0:00:04.3]}
62. Nxc7 {[%clk 0:00:10.1]} 62... Kxc7 {[%clk 0:00:05.2]} 63. Kc3 {[%clk
0:00:10.7]} 63... Kc6 {[%clk 0:00:06.1]} 64. Kc4 {[%clk 0:00:11.2]} 64... f5
{[%clk 0:00:06]} 65. b5+ {[%clk 0:00:11.6]} 65... Kb7 {[%clk 0:00:06.3]} 66.
gxf5 {[%clk 0:00:12.5]} 66... Kc7 {[%clk 0:00:06.1]} 67. d5 {[%clk 0:00:13]}
67... Kd7 {[%clk 0:00:06.5]} 68. Kd4 {[%clk 0:00:12.7]} 68... Kc7 {[%clk
0:00:07.1]} 69. Ke5 {[%clk 0:00:12.6]} 69... Kd7 {[%clk 0:00:07.1]} 70. d6
{[%clk 0:00:13.1]} 70... Ke8 {[%clk 0:00:08]} 71. b6 {[%clk 0:00:13.3]} 71...
Nxb6 {[%clk 0:00:07.7]} 72. Bxb6 {[%clk 0:00:13.4]} 72... h5 {[%clk 0:00:08.6]}
73. Kd5 {[%clk 0:00:11.5]} 73... Kd7 {[%clk 0:00:09.5]} 74. f6 {[%clk 0:00:12]}
74... Ke8 {[%clk 0:00:09.4]} 75. Kc6 {[%clk 0:00:12.5]} 75... Kf8 {[%clk
0:00:09.9]} 76. d7 {[%clk 0:00:12.1]} 76... Kg8 {[%clk 0:00:10.8]} 77. d8=Q+
{[%clk 0:00:12.2]} 77... Kh7 {[%clk 0:00:11.7]} 78. Qd3+ {[%clk 0:00:12.3]}
78... Kh6 {[%clk 0:00:12.6]} 79. Be3# {[%clk 0:00:11.4]} 1-0

[Event "*** Titled Tuesday Blitz"]
[Site "Chess.com"]
[Date "2020.12.29"]
[Round "3"]
[White "BAS8892"]
[Black "TigrVShlyape"]
[Result "0-1"]
[WhiteElo "2633"]
[BlackElo "2866"]
[TimeControl "180+1"]
[EndTime "10:30:05 PST"]
[Termination "TigrVShlyape won by resignation"]

1. d4 {[%clk 0:03:00.9]} 1... d5 {[%clk 0:02:56.9]} 2. c4 {[%clk 0:03:00.7]}
2... c6 {[%clk 0:02:52.4]} 3. Nf3 {[%clk 0:03:00]} 3... Nf6 {[%clk 0:02:51.5]}
4. Nc3 {[%clk 0:02:59.6]} 4... a6 {[%clk 0:02:51.8]} 5. c5 {[%clk 0:02:57.3]}
5... g6 {[%clk 0:02:46.5]} 6. h3 {[%clk 0:02:57.2]} 6... Bg7 {[%clk 0:02:44.9]}
7. Bf4 {[%clk 0:02:56.6]} 7... O-O {[%clk 0:02:44.2]} 8. e3 {[%clk 0:02:56.6]}
8... Bf5 {[%clk 0:02:44.6]} 9. Qb3 {[%clk 0:02:55.2]} 9... Qc8 {[%clk
0:02:44.4]} 10. Be2 {[%clk 0:02:51]} 10... Nbd7 {[%clk 0:02:43.7]} 11. O-O
{[%clk 0:02:50.6]} 11... Ne4 {[%clk 0:02:43.1]} 12. Na4 {[%clk 0:02:46.1]} 12...
Re8 {[%clk 0:02:25.3]} 13. Rfd1 {[%clk 0:02:37.7]} 13... Ra7 {[%clk 0:02:21.1]}
14. Nb6 {[%clk 0:02:35]} 14... Nxb6 {[%clk 0:02:20]} 15. cxb6 {[%clk 0:02:35.1]}
15... Ra8 {[%clk 0:02:19.9]} 16. Rac1 {[%clk 0:02:34.4]} 16... a5 {[%clk
0:02:10.4]} 17. Bf1 {[%clk 0:02:32.7]} 17... Nd6 {[%clk 0:02:03.1]} 18. a4
{[%clk 0:02:30]} 18... Qd8 {[%clk 0:01:59.1]} 19. g4 {[%clk 0:01:56.3]} 19...
Be6 {[%clk 0:01:51.6]} 20. Ng5 {[%clk 0:01:39.7]} 20... Bc8 {[%clk 0:01:48.9]}
21. e4 {[%clk 0:01:39.3]} 21... h6 {[%clk 0:01:42.2]} 22. Bxd6 {[%clk
0:01:27.3]} 22... exd6 {[%clk 0:01:30.9]} 23. exd5 {[%clk 0:01:23.3]} 23... Qxg5
{[%clk 0:01:26.9]} 24. dxc6 {[%clk 0:01:21.9]} 24... bxc6 {[%clk 0:01:00.5]} 25.
b7 {[%clk 0:01:13.3]} 25... Bxb7 {[%clk 0:01:00.1]} 26. Qxb7 {[%clk 0:01:12]}
26... Bxd4 {[%clk 0:00:49.2]} 27. Qxc6 {[%clk 0:00:59.8]} 27... Qf6 {[%clk
0:00:43.7]} 28. Rc2 {[%clk 0:00:48.1]} 28... Kg7 {[%clk 0:00:30.2]} 29. Rcd2
{[%clk 0:00:31.1]} 29... Be5 {[%clk 0:00:27.1]} 30. Bg2 {[%clk 0:00:27.2]} 30...
Rab8 {[%clk 0:00:24.6]} 31. Qf3 {[%clk 0:00:22.3]} 31... Rec8 {[%clk 0:00:20.6]}
32. Qxf6+ {[%clk 0:00:21.2]} 32... Kxf6 {[%clk 0:00:20.9]} 33. Be4 {[%clk
0:00:11.7]} 33... Rc4 {[%clk 0:00:19.4]} 34. Bd5 {[%clk 0:00:10.4]} 34... Rxa4
{[%clk 0:00:18.9]} 35. b3 {[%clk 0:00:10.9]} 35... Rf4 {[%clk 0:00:18.1]} 36.
Kg2 {[%clk 0:00:11]} 36... h5 {[%clk 0:00:17.5]} 37. gxh5 {[%clk 0:00:09.8]}
37... gxh5 {[%clk 0:00:17.3]} 38. Rc2 {[%clk 0:00:10]} 38... Rg8+ {[%clk
0:00:16.9]} 39. Kf1 {[%clk 0:00:10.4]} 39... Bd4 {[%clk 0:00:13.5]} 40. Rd3
{[%clk 0:00:09.1]} 40... Bc5 {[%clk 0:00:13.3]} 41. Rdd2 {[%clk 0:00:08.7]}
41... Rg3 {[%clk 0:00:12.4]} 42. Rc4 {[%clk 0:00:08.2]} 42... Rxc4 {[%clk
0:00:11.5]} 43. Bxc4 {[%clk 0:00:08.2]} 43... Rxh3 {[%clk 0:00:11.2]} 44. Rd5
{[%clk 0:00:08.4]} 44... Rf3 {[%clk 0:00:10.6]} 45. Rxh5 {[%clk 0:00:08.3]}
45... Rxf2+ {[%clk 0:00:10.7]} 46. Ke1 {[%clk 0:00:08.9]} 46... Rf4 {[%clk
0:00:09]} 47. Kd2 {[%clk 0:00:08]} 47... Kg6 {[%clk 0:00:09]} 48. Rd5 {[%clk
0:00:07.1]} 48... f5 {[%clk 0:00:09.1]} 49. Ke2 {[%clk 0:00:07.1]} 49... Kg5
{[%clk 0:00:09.3]} 50. Bd3 {[%clk 0:00:07]} 50... Kg4 {[%clk 0:00:09.5]} 51. Bb5
{[%clk 0:00:06.4]} 51... Re4+ {[%clk 0:00:09.3]} 52. Kd2 {[%clk 0:00:06]} 52...
f4 {[%clk 0:00:09.3]} 53. Bc6 {[%clk 0:00:04.8]} 53... Rb4 {[%clk 0:00:07.6]}
54. Kc2 {[%clk 0:00:04.6]} 54... f3 {[%clk 0:00:07.1]} 55. Rd1 {[%clk
0:00:03.9]} 55... f2 {[%clk 0:00:07.3]} 56. Bd5 {[%clk 0:00:03.9]} 56... Kg3
{[%clk 0:00:07.7]} 57. Bc4 {[%clk 0:00:03.7]} 57... Rb7 {[%clk 0:00:07.2]} 58.
Rd5 {[%clk 0:00:03.2]} 58... Re7 {[%clk 0:00:07.5]} 59. Rg5+ {[%clk 0:00:03.2]}
59... Kf4 {[%clk 0:00:07.2]} 60. Rg8 {[%clk 0:00:02.9]} 60... Re1 {[%clk
0:00:06.5]} 61. Rf8+ {[%clk 0:00:03.3]} 61... Kg5 {[%clk 0:00:06.7]} 62. Rf7
{[%clk 0:00:03.3]} 62... Be3 {[%clk 0:00:06.5]} 63. Kd3 {[%clk 0:00:03.5]} 63...
Bf4 {[%clk 0:00:06.7]} 64. Kc3 {[%clk 0:00:03.4]} 64... f1=Q {[%clk 0:00:06.4]}
65. Bxf1 {[%clk 0:00:02.7]} 65... Rxf1 {[%clk 0:00:07.3]} 66. Kc4 {[%clk
0:00:03.4]} 66... Rc1+ {[%clk 0:00:06.5]} 67. Kb5 {[%clk 0:00:03.8]} 67... Rc3
{[%clk 0:00:06.5]} 68. Ka4 {[%clk 0:00:03.9]} 68... Be5 {[%clk 0:00:05.9]} 69.
Rf3 {[%clk 0:00:03.5]} 69... Rxf3 {[%clk 0:00:05.6]} 0-1